[Event "*** Titled Tuesday Blitz"]
[Site "Chess.com"]
[Date "2020.04.28"]
[Round "8"]
[White "violetflower04"]
[Black "tamarozi99"]
[Result "1-0"]
[WhiteElo "2170"]
[BlackElo "1953"]
[TimeControl "180+1"]
[EndTime "11:37:07 PDT"]
[Termination "violetflower04 won by resignation"]

1. e4 {[%clk 0:03:00.9]} 1... c5 {[%clk 0:02:59.3]} 2. Nf3 {[%clk 0:03:00.2]}
2... Nc6 {[%clk 0:02:58.6]} 3. d4 {[%clk 0:03:01.1]} 3... cxd4 {[%clk
0:02:58.4]} 4. Nxd4 {[%clk 0:03:02]} 4... g6 {[%clk 0:02:58.7]} 5. Be3 {[%clk
0:03:01.2]} 5... Nf6 {[%clk 0:02:54.3]} 6. Nc3 {[%clk 0:03:01.2]} 6... Bg7
{[%clk 0:02:53.9]} 7. Be2 {[%clk 0:03:01.9]} 7... O-O {[%clk 0:02:51.4]} 8. O-O
{[%clk 0:03:02.3]} 8... d5 {[%clk 0:02:48.6]} 9. Nxc6 {[%clk 0:03:02.4]} 9...
bxc6 {[%clk 0:02:46]} 10. exd5 {[%clk 0:03:03]} 10... cxd5 {[%clk 0:02:42.3]}
11. Bf3 {[%clk 0:02:58.8]} 11... Bb7 {[%clk 0:02:29.4]} 12. Bd4 {[%clk
0:02:46.6]} 12... Re8 {[%clk 0:02:25.1]} 13. Bxf6 {[%clk 0:02:44.2]} 13... Bxf6
{[%clk 0:02:22.8]} 14. Nxd5 {[%clk 0:02:44.6]} 14... Bxb2 {[%clk 0:02:13]} 15.
Rb1 {[%clk 0:02:43.7]} 15... Bxd5 {[%clk 0:02:09.2]} 16. Bxd5 {[%clk 0:02:32.1]}
16... Rb8 {[%clk 0:02:05.5]} 17. Qf3 {[%clk 0:02:32.5]} 17... e6 {[%clk
0:01:59.8]} 18. Bc6 {[%clk 0:02:27.1]} 18... Rf8 {[%clk 0:01:55.7]} 19. Rfd1
{[%clk 0:02:27.2]} 19... Qa5 {[%clk 0:01:44.1]} 20. a4 {[%clk 0:02:12.2]} 20...
Qc3 {[%clk 0:01:29]} 21. Qxc3 {[%clk 0:01:54.6]} 21... Bxc3 {[%clk 0:01:29.9]}
22. Rb3 {[%clk 0:01:55.5]} 22... Rxb3 {[%clk 0:01:20.5]} 23. cxb3 {[%clk
0:01:56.4]} 23... Rb8 {[%clk 0:01:15.5]} 24. Bb5 {[%clk 0:01:56.9]} 24... a5
{[%clk 0:00:58.2]} 25. Rd7 {[%clk 0:01:37.9]} 25... Rc8 {[%clk 0:00:49.7]} 26.
Bc4 {[%clk 0:01:30.1]} 26... Kf8 {[%clk 0:00:39.7]} 27. Kf1 {[%clk 0:01:27.8]}
27... Ke8 {[%clk 0:00:39.5]} 28. Ra7 {[%clk 0:01:17.1]} 28... Rd8 {[%clk
0:00:34.9]} 29. Ke2 {[%clk 0:01:13.4]} 29... Rd2+ {[%clk 0:00:33.9]} 30. Ke3
{[%clk 0:00:56.5]} 30... Rd1 {[%clk 0:00:23.6]} 31. Kf4 {[%clk 0:00:44.6]} 31...
Bd4 {[%clk 0:00:19.5]} 32. Ra8+ {[%clk 0:00:43.5]} 32... Ke7 {[%clk 0:00:18.9]}
33. f3 {[%clk 0:00:40.4]} 33... Bc3 {[%clk 0:00:17.6]} 34. g4 {[%clk 0:00:34.8]}
34... h6 {[%clk 0:00:16.2]} 35. h4 {[%clk 0:00:34.8]} 35... Bd2+ {[%clk
0:00:14.1]} 36. Kg3 {[%clk 0:00:32.2]} 36... Be1+ {[%clk 0:00:13.7]} 37. Kh3
{[%clk 0:00:28]} 37... Kf6 {[%clk 0:00:10]} 38. Ra7 {[%clk 0:00:22.8]} 38... Bb4
{[%clk 0:00:08.8]} 39. g5+ {[%clk 0:00:20.2]} 39... hxg5 {[%clk 0:00:07.5]} 40.
hxg5+ {[%clk 0:00:21.1]} 40... Kxg5 {[%clk 0:00:05.1]} 41. Rxf7 {[%clk
0:00:21.7]} 41... Rh1+ {[%clk 0:00:02]} 42. Kg2 {[%clk 0:00:21.7]} 42... Rd1
{[%clk 0:00:02.6]} 43. Bxe6 {[%clk 0:00:20.8]} 43... Rd2+ {[%clk 0:00:02.5]} 44.
Kf1 {[%clk 0:00:17.3]} 44... Bc5 {[%clk 0:00:02.7]} 45. Bc4 {[%clk 0:00:15.4]}
45... Rf2+ {[%clk 0:00:02.6]} 46. Ke1 {[%clk 0:00:16.1]} 46... Kh4 {[%clk
0:00:02.7]} 47. Rg7 {[%clk 0:00:15.7]} 47... g5 {[%clk 0:00:02.7]} 48. Be6
{[%clk 0:00:12.8]} 48... Rb2 {[%clk 0:00:02.7]} 49. Rh7+ {[%clk 0:00:12.4]}
49... Kg3 {[%clk 0:00:02.8]} 50. Bd5 {[%clk 0:00:13.1]} 50... Kf4 {[%clk
0:00:02.6]} 51. Kd1 {[%clk 0:00:08.7]} 51... Ke3 {[%clk 0:00:02.8]} 52. Kc1
{[%clk 0:00:08.7]} 52... Rf2 {[%clk 0:00:02.6]} 53. Rc7 {[%clk 0:00:08.1]} 53...
Kd3 {[%clk 0:00:02.7]} 54. Rxc5 {[%clk 0:00:08.2]} 54... Rf1+ {[%clk 0:00:02.7]}
55. Kb2 {[%clk 0:00:08.8]} 55... Rf2+ {[%clk 0:00:02.9]} 56. Ka3 {[%clk
0:00:08.7]} 56... Rf1 {[%clk 0:00:03.3]} 57. Ka2 {[%clk 0:00:08]} 57... Rf2+
{[%clk 0:00:03.4]} 58. Kb1 {[%clk 0:00:07.9]} 58... Rf1+ {[%clk 0:00:03.7]} 59.
Rc1 {[%clk 0:00:08.6]} 59... Rf2 {[%clk 0:00:04]} 60. Bc4+ {[%clk 0:00:09]}
60... Kd4 {[%clk 0:00:03.6]} 61. Rd1+ {[%clk 0:00:09.2]} 61... Ke3 {[%clk
0:00:02.5]} 62. Rd3+ {[%clk 0:00:09.9]} 62... Ke2 {[%clk 0:00:02.1]} 63. Rc3+
{[%clk 0:00:09]} 63... Ke1 {[%clk 0:00:02.3]} 64. Rc1+ {[%clk 0:00:09.2]} 64...
Kd2 {[%clk 0:00:02.5]} 65. Rc2+ {[%clk 0:00:10.1]} 65... Ke1 {[%clk 0:00:02.9]}
66. Rxf2 {[%clk 0:00:10.9]} 66... Kxf2 {[%clk 0:00:03.8]} 67. Bd5 {[%clk
0:00:11.3]} 67... Ke3 {[%clk 0:00:04]} 68. Kc2 {[%clk 0:00:11.8]} 1-0

[Event "*** Titled Tuesday Blitz"]
[Site "Chess.com"]
[Date "2020.04.28"]
[Round "8"]
[White "Batica1984"]
[Black "doons21"]
[Result "1-0"]
[WhiteElo "2804"]
[BlackElo "2631"]
[TimeControl "180+1"]
[EndTime "11:37:11 PDT"]
[Termination "Batica1984 won by resignation"]

1. e4 {[%clk 0:03:00.9]} 1... e6 {[%clk 0:02:59.4]} 2. d4 {[%clk 0:02:57.3]}
2... d5 {[%clk 0:02:59.7]} 3. Nc3 {[%clk 0:02:57]} 3... Bb4 {[%clk 0:02:59.7]}
4. e5 {[%clk 0:02:44.8]} 4... Ne7 {[%clk 0:02:58.5]} 5. a3 {[%clk 0:02:39.3]}
5... Bxc3+ {[%clk 0:02:58.7]} 6. bxc3 {[%clk 0:02:40.2]} 6... c5 {[%clk
0:02:59.2]} 7. Qg4 {[%clk 0:02:39.9]} 7... Kf8 {[%clk 0:02:59.3]} 8. a4 {[%clk
0:02:29.5]} 8... Qc7 {[%clk 0:02:56.4]} 9. Qd1 {[%clk 0:02:24.1]} 9... Qa5
{[%clk 0:02:46.1]} 10. Bd2 {[%clk 0:02:22.1]} 10... Qc7 {[%clk 0:02:46]} 11. Nf3
{[%clk 0:02:18.9]} 11... b6 {[%clk 0:02:46.3]} 12. h4 {[%clk 0:01:56.7]} 12...
Ba6 {[%clk 0:02:41.3]} 13. Bxa6 {[%clk 0:01:56.4]} 13... Nxa6 {[%clk 0:02:41]}
14. h5 {[%clk 0:01:56.7]} 14... h6 {[%clk 0:02:40.9]} 15. Qe2 {[%clk 0:01:53.8]}
15... Nb8 {[%clk 0:02:30.5]} 16. a5 {[%clk 0:01:52.6]} 16... bxa5 {[%clk
0:02:11.2]} 17. O-O {[%clk 0:01:46]} 17... Nbc6 {[%clk 0:02:08.8]} 18. dxc5
{[%clk 0:01:40.8]} 18... Kg8 {[%clk 0:01:48.6]} 19. c4 {[%clk 0:01:39.3]} 19...
Kh7 {[%clk 0:01:35.8]} 20. Qd3+ {[%clk 0:01:34.9]} 20... Kg8 {[%clk 0:01:35.9]}
21. Rfb1 {[%clk 0:01:04.9]} 21... Rd8 {[%clk 0:01:22.8]} 22. cxd5 {[%clk
0:01:01.3]} 22... Rxd5 {[%clk 0:01:21.6]} 23. Qc3 {[%clk 0:00:44.5]} 23... Kh7
{[%clk 0:01:14.5]} 24. Bf4 {[%clk 0:00:40.9]} 24... Rhd8 {[%clk 0:01:10.8]} 25.
Qc4 {[%clk 0:00:38.6]} 25... Kh8 {[%clk 0:01:03]} 26. Rb5 {[%clk 0:00:34.6]}
26... Rd4 {[%clk 0:00:57.3]} 27. Nxd4 {[%clk 0:00:31.6]} 27... Rxd4 {[%clk
0:00:57.7]} 28. Qe2 {[%clk 0:00:24.1]} 28... Rxf4 {[%clk 0:00:57.9]} 29. Rab1
{[%clk 0:00:22.9]} 29... Qxe5 {[%clk 0:00:40.5]} 30. Qxe5 {[%clk 0:00:19.7]}
30... Nxe5 {[%clk 0:00:41.4]} 31. Rb8+ {[%clk 0:00:15.1]} 31... Kh7 {[%clk
0:00:40.9]} 32. R1b7 {[%clk 0:00:15.2]} 32... N5c6 {[%clk 0:00:39.9]} 33. Re8
{[%clk 0:00:13.9]} 33... Nd5 {[%clk 0:00:30.4]} 34. Rc8 {[%clk 0:00:12.3]} 34...
Ne5 {[%clk 0:00:20.5]} 35. c6 {[%clk 0:00:10.1]} 35... Rc4 {[%clk 0:00:19.4]}
36. c7 {[%clk 0:00:10.2]} 36... g6 {[%clk 0:00:18.3]} 37. hxg6+ {[%clk
0:00:09.5]} 37... Kxg6 {[%clk 0:00:19.2]} 38. Rg8+ {[%clk 0:00:08.8]} 38... Kf6
{[%clk 0:00:19.1]} 39. c8=Q {[%clk 0:00:09.7]} 39... Rxc8 {[%clk 0:00:19.1]} 40.
Rxc8 {[%clk 0:00:10.6]} 40... Nb4 {[%clk 0:00:15.1]} 41. c3 {[%clk 0:00:10.3]}
41... Nbc6 {[%clk 0:00:15.4]} 42. Rbc7 {[%clk 0:00:09.4]} 42... Ne7 {[%clk
0:00:14.2]} 43. Rxa7 {[%clk 0:00:09.5]} 43... Nd5 {[%clk 0:00:15.1]} 44. Rxa5
{[%clk 0:00:08.9]} 44... Nd3 {[%clk 0:00:14.4]} 45. c4 {[%clk 0:00:08.8]} 45...
Nb6 {[%clk 0:00:14.6]} 46. Rb8 {[%clk 0:00:08.7]} 46... Nxc4 {[%clk 0:00:14]}
47. Ra1 {[%clk 0:00:09.3]} 47... Nde5 {[%clk 0:00:14]} 48. g3 {[%clk 0:00:09.7]}
48... Nd6 {[%clk 0:00:14.3]} 49. Kg2 {[%clk 0:00:09.9]} 49... Nf5 {[%clk
0:00:14.8]} 50. Rb5 {[%clk 0:00:09.5]} 50... Nd4 {[%clk 0:00:14.8]} 51. Rba5
{[%clk 0:00:09.7]} 51... Nb3 {[%clk 0:00:14.8]} 52. Rxe5 {[%clk 0:00:09.6]}
52... Nxa1 {[%clk 0:00:11.1]} 53. Re3 {[%clk 0:00:09.7]} 53... Nc2 {[%clk
0:00:10.6]} 54. Re4 {[%clk 0:00:10.1]} 54... Na3 {[%clk 0:00:10]} 55. Rb4 {[%clk
0:00:09.7]} 55... Nc2 {[%clk 0:00:09.8]} 56. Rf4+ {[%clk 0:00:09.5]} 56... Kg6
{[%clk 0:00:09.6]} 57. Kf3 {[%clk 0:00:09.8]} 57... Na3 {[%clk 0:00:09.7]} 58.
Rb4 {[%clk 0:00:09.3]} 58... Nc2 {[%clk 0:00:10]} 59. Re4 {[%clk 0:00:09.3]}
59... Kg7 {[%clk 0:00:07.2]} 60. Ke2 {[%clk 0:00:09]} 60... f5 {[%clk
0:00:07.6]} 61. Rc4 {[%clk 0:00:08.2]} 61... Na3 {[%clk 0:00:07.4]} 62. Rc5
{[%clk 0:00:08.6]} 62... Kf6 {[%clk 0:00:06.8]} 63. Kd3 {[%clk 0:00:08.9]} 63...
e5 {[%clk 0:00:07.3]} 64. Kc3 {[%clk 0:00:08.9]} 64... Nb1+ {[%clk 0:00:07.6]}
65. Kc2 {[%clk 0:00:09.2]} 65... Na3+ {[%clk 0:00:07.5]} 66. Kb2 {[%clk
0:00:09.6]} 66... Nb1 {[%clk 0:00:07.9]} 67. Kxb1 {[%clk 0:00:09.7]} 67... e4
{[%clk 0:00:07.1]} 68. Kc2 {[%clk 0:00:10]} 68... Kg5 {[%clk 0:00:08]} 69. Kd2
{[%clk 0:00:10.2]} 69... Kg4 {[%clk 0:00:08.9]} 70. Ke2 {[%clk 0:00:10.7]} 70...
h5 {[%clk 0:00:09.8]} 71. Rc6 {[%clk 0:00:11]} 71... h4 {[%clk 0:00:10]} 72.
gxh4 {[%clk 0:00:10.6]} 72... Kxh4 {[%clk 0:00:10.9]} 73. Rg6 {[%clk 0:00:10.6]}
1-0

[Event "*** Titled Tuesday Blitz"]
[Site "Chess.com"]
[Date "2020.04.28"]
[Round "8"]
[White "ama18"]
[Black "tacticthunder"]
[Result "1-0"]
[WhiteElo "2482"]
[BlackElo "2641"]
[TimeControl "180+1"]
[EndTime "11:37:11 PDT"]
[Termination "ama18 won by resignation"]

1. e4 {[%clk 0:03:00.9]} 1... c5 {[%clk 0:02:56.8]} 2. Nf3 {[%clk 0:02:57.6]}
2... Nc6 {[%clk 0:02:57.2]} 3. d4 {[%clk 0:02:52.6]} 3... cxd4 {[%clk
0:02:58.1]} 4. Nxd4 {[%clk 0:02:52.8]} 4... Nf6 {[%clk 0:02:59]} 5. Nc3 {[%clk
0:02:52.3]} 5... d6 {[%clk 0:02:59.1]} 6. Bg5 {[%clk 0:02:51.2]} 6... e6 {[%clk
0:02:59.5]} 7. Qd2 {[%clk 0:02:50.4]} 7... a6 {[%clk 0:03:00]} 8. Nxc6 {[%clk
0:02:49.8]} 8... bxc6 {[%clk 0:02:59.7]} 9. O-O-O {[%clk 0:02:50.7]} 9... Be7
{[%clk 0:02:59.7]} 10. Bxf6 {[%clk 0:02:48.2]} 10... gxf6 {[%clk 0:02:58.8]} 11.
Bc4 {[%clk 0:02:48]} 11... Qb6 {[%clk 0:02:53.1]} 12. Bb3 {[%clk 0:02:47.8]}
12... Qc5 {[%clk 0:02:53.3]} 13. Rhe1 {[%clk 0:02:45.5]} 13... a5 {[%clk
0:02:53.5]} 14. Na4 {[%clk 0:02:42.7]} 14... Qb4 {[%clk 0:02:51.8]} 15. c3
{[%clk 0:02:40]} 15... Qb5 {[%clk 0:02:51]} 16. c4 {[%clk 0:02:39.8]} 16... Qb4
{[%clk 0:02:49.7]} 17. Qxb4 {[%clk 0:01:50.3]} 17... axb4 {[%clk 0:02:50.6]} 18.
Nb6 {[%clk 0:01:40.5]} 18... Rb8 {[%clk 0:02:50.1]} 19. Nxc8 {[%clk 0:01:39.3]}
19... Rxc8 {[%clk 0:02:51]} 20. f4 {[%clk 0:01:40.1]} 20... Kd7 {[%clk
0:02:48.9]} 21. e5 {[%clk 0:01:37.4]} 21... fxe5 {[%clk 0:02:47.6]} 22. fxe5
{[%clk 0:01:38.3]} 22... d5 {[%clk 0:02:48.2]} 23. Kb1 {[%clk 0:01:22.2]} 23...
h5 {[%clk 0:02:47.3]} 24. cxd5 {[%clk 0:01:04.4]} 24... cxd5 {[%clk 0:02:48.2]}
25. Ba4+ {[%clk 0:01:02.2]} 25... Kc7 {[%clk 0:02:40.9]} 26. Rc1+ {[%clk
0:01:01.8]} 26... Kb6 {[%clk 0:02:38.9]} 27. Rxc8 {[%clk 0:01:00.3]} 27... Rxc8
{[%clk 0:02:39.8]} 28. Rf1 {[%clk 0:01:00.8]} 28... Rf8 {[%clk 0:02:40.2]} 29.
g3 {[%clk 0:00:56.5]} 29... f6 {[%clk 0:02:35.4]} 30. exf6 {[%clk 0:00:52.7]}
30... Rxf6 {[%clk 0:02:36.3]} 31. Rxf6 {[%clk 0:00:52.3]} 31... Bxf6 {[%clk
0:02:37.2]} 32. Bd1 {[%clk 0:00:53.2]} 32... h4 {[%clk 0:02:36.3]} 33. gxh4
{[%clk 0:00:54.1]} 33... Bxh4 {[%clk 0:02:37.2]} 34. Bg4 {[%clk 0:00:53.1]}
34... e5 {[%clk 0:02:36.4]} 35. Kc2 {[%clk 0:00:53.5]} 35... Be7 {[%clk
0:02:33.7]} 36. Bf5 {[%clk 0:00:42.6]} 36... e4 {[%clk 0:02:29.3]} 37. Kd2
{[%clk 0:00:27.2]} 37... Kc5 {[%clk 0:02:24.3]} 38. Ke3 {[%clk 0:00:27.2]} 38...
Bg5+ {[%clk 0:02:23.4]} 39. Ke2 {[%clk 0:00:27.2]} 39... Kd4 {[%clk 0:02:23.6]}
40. a4 {[%clk 0:00:23.5]} 40... Ke5 {[%clk 0:02:20.5]} 41. Bd7 {[%clk
0:00:20.2]} 41... d4 {[%clk 0:02:20.6]} 42. Bb5 {[%clk 0:00:10.5]} 42... Kd5
{[%clk 0:02:03.6]} 43. b3 {[%clk 0:00:10.7]} 43... Bd8 {[%clk 0:01:55.3]} 44.
Bc4+ {[%clk 0:00:11.6]} 44... Ke5 {[%clk 0:01:54.9]} 45. h3 {[%clk 0:00:12]}
45... Kf4 {[%clk 0:01:54.7]} 46. Bb5 {[%clk 0:00:11.5]} 46... Kg3 {[%clk
0:01:23.9]} 47. Bd7 {[%clk 0:00:10.7]} 47... d3+ {[%clk 0:01:21.5]} 48. Ke3
{[%clk 0:00:10.8]} 48... Bg5+ {[%clk 0:00:42.9]} 49. Kxe4 {[%clk 0:00:10.8]}
49... d2 {[%clk 0:00:43.3]} 50. Bg4 {[%clk 0:00:09.2]} 50... Kf2 {[%clk
0:00:43.7]} 51. a5 {[%clk 0:00:08.8]} 51... Bd8 {[%clk 0:00:40]} 52. a6 {[%clk
0:00:08.7]} 52... Bb6 {[%clk 0:00:40.5]} 53. h4 {[%clk 0:00:09]} 53... Kg3
{[%clk 0:00:41]} 54. Kf5 {[%clk 0:00:08.7]} 54... Kxh4 {[%clk 0:00:40.1]} 55.
Bd1 {[%clk 0:00:07.2]} 55... Kg3 {[%clk 0:00:40.1]} 56. Ke4 {[%clk 0:00:07.6]}
56... Kf2 {[%clk 0:00:40.4]} 57. Kd5 {[%clk 0:00:08]} 57... Ke1 {[%clk
0:00:40.5]} 58. Bg4 {[%clk 0:00:08.1]} 58... d1=Q+ {[%clk 0:00:40.5]} 59. Bxd1
{[%clk 0:00:08.1]} 59... Kxd1 {[%clk 0:00:41.4]} 60. Kc4 {[%clk 0:00:08.3]}
60... Kc2 {[%clk 0:00:40.5]} 61. Kxb4 {[%clk 0:00:08.7]} 61... Kd3 {[%clk
0:00:40.6]} 62. Kb5 {[%clk 0:00:08.6]} 62... Bf2 {[%clk 0:00:38.1]} 63. b4
{[%clk 0:00:08.4]} 63... Kc3 {[%clk 0:00:37.8]} 64. Ka5 {[%clk 0:00:08.5]} 64...
Kc4 {[%clk 0:00:36]} 65. b5 {[%clk 0:00:08.7]} 65... Be1+ {[%clk 0:00:21.8]} 66.
Kb6 {[%clk 0:00:08.8]} 66... Kd5 {[%clk 0:00:19.1]} 67. Kb7 {[%clk 0:00:07.5]}
67... Bf2 {[%clk 0:00:18.5]} 68. b6 {[%clk 0:00:07.6]} 1-0

[Event "*** Titled Tuesday Blitz"]
[Site "Chess.com"]
[Date "2020.04.28"]
[Round "8"]
[White "dbrankovic68"]
[Black "enriquetejedor"]
[Result "1-0"]
[WhiteElo "2382"]
[BlackElo "2500"]
[TimeControl "180+1"]
[EndTime "11:37:12 PDT"]
[Termination "dbrankovic68 won on time"]

1. e4 {[%clk 0:02:59.5]} 1... c5 {[%clk 0:02:24.1]} 2. Nf3 {[%clk 0:02:57.4]}
2... Nc6 {[%clk 0:02:17.2]} 3. Bb5 {[%clk 0:02:56.2]} 3... Nf6 {[%clk
0:02:12.5]} 4. e5 {[%clk 0:02:39.6]} 4... Nd5 {[%clk 0:02:10.1]} 5. Nc3 {[%clk
0:02:37.3]} 5... Nc7 {[%clk 0:01:37.6]} 6. Bxc6 {[%clk 0:02:35.5]} 6... dxc6
{[%clk 0:01:18.4]} 7. h3 {[%clk 0:02:34.5]} 7... Bf5 {[%clk 0:01:11.4]} 8. d3
{[%clk 0:02:33.9]} 8... g6 {[%clk 0:01:05.6]} 9. O-O {[%clk 0:02:32.8]} 9... Bg7
{[%clk 0:01:04]} 10. a4 {[%clk 0:02:31.3]} 10... b6 {[%clk 0:01:02.8]} 11. Re1
{[%clk 0:02:27.3]} 11... O-O {[%clk 0:01:02.4]} 12. Ne2 {[%clk 0:01:59.6]} 12...
Be6 {[%clk 0:00:39.8]} 13. Nf4 {[%clk 0:01:56.7]} 13... Qd7 {[%clk 0:00:30.6]}
14. Ng5 {[%clk 0:01:52.9]} 14... Rad8 {[%clk 0:00:17.8]} 15. Qe2 {[%clk
0:01:46.9]} 15... Bf5 {[%clk 0:00:12.2]} 16. a5 {[%clk 0:01:40]} 16... Be6
{[%clk 0:00:10.7]} 17. axb6 {[%clk 0:01:37.6]} 17... axb6 {[%clk 0:00:11.6]} 18.
Ra7 {[%clk 0:01:36.8]} 18... Ra8 {[%clk 0:00:11.1]} 19. Rxa8 {[%clk 0:01:26.9]}
19... Rxa8 {[%clk 0:00:12]} 20. Bd2 {[%clk 0:01:26.3]} 20... h6 {[%clk
0:00:10.4]} 21. Ngxe6 {[%clk 0:01:09.9]} 21... Nxe6 {[%clk 0:00:11.1]} 22. Nxe6
{[%clk 0:01:08.4]} 22... Qxe6 {[%clk 0:00:12]} 23. Bc3 {[%clk 0:01:06.3]} 23...
h5 {[%clk 0:00:08.4]} 24. Qe4 {[%clk 0:01:04]} 24... Qd5 {[%clk 0:00:07.2]} 25.
Qh4 {[%clk 0:00:58.6]} 25... e6 {[%clk 0:00:06.1]} 26. Qe7 {[%clk 0:00:52.7]}
26... Qd8 {[%clk 0:00:05.2]} 27. Qb7 {[%clk 0:00:47.4]} 27... Rc8 {[%clk
0:00:01.9]} 28. Ra1 {[%clk 0:00:44.8]} 28... Qc7 {[%clk 0:00:02.1]} 29. Qxc7
{[%clk 0:00:44]} 29... Rxc7 {[%clk 0:00:03]} 30. Ra8+ {[%clk 0:00:43.1]} 30...
Bf8 {[%clk 0:00:03.3]} 31. Rb8 {[%clk 0:00:42.3]} 31... b5 {[%clk 0:00:03.7]}
32. b3 {[%clk 0:00:42.8]} 32... c4 {[%clk 0:00:03.1]} 33. Bb4 {[%clk 0:00:42.4]}
33... c5 {[%clk 0:00:02.4]} 34. Ba5 {[%clk 0:00:41.1]} 34... cxb3 {[%clk
0:00:02.5]} 35. cxb3 {[%clk 0:00:38.7]} 35... Rd7 {[%clk 0:00:02]} 36. Rd8
{[%clk 0:00:36.3]} 36... Rxd8 {[%clk 0:00:01.8]} 37. Bxd8 {[%clk 0:00:36.3]}
37... Bg7 {[%clk 0:00:02]} 38. Bc7 {[%clk 0:00:35.9]} 38... Bf8 {[%clk
0:00:01.8]} 39. Kf1 {[%clk 0:00:35.8]} 39... Kg7 {[%clk 0:00:01.9]} 40. Ke2
{[%clk 0:00:36.2]} 40... f5 {[%clk 0:00:02]} 41. exf6+ {[%clk 0:00:35.3]} 41...
Kxf6 {[%clk 0:00:02.5]} 42. Ke3 {[%clk 0:00:35.8]} 42... Ke7 {[%clk 0:00:02.2]}
43. Ke4 {[%clk 0:00:34.7]} 43... Kd7 {[%clk 0:00:02.4]} 44. Be5 {[%clk
0:00:35.2]} 44... Bd6 {[%clk 0:00:02.4]} 45. f4 {[%clk 0:00:32.9]} 45... Be7
{[%clk 0:00:02.1]} 46. g4 {[%clk 0:00:32.4]} 46... hxg4 {[%clk 0:00:03]} 47.
hxg4 {[%clk 0:00:32]} 47... Bf8 {[%clk 0:00:03.9]} 48. Bf6 {[%clk 0:00:31]}
48... Bd6 {[%clk 0:00:03.7]} 49. Bg7 {[%clk 0:00:30.9]} 49... Be7 {[%clk
0:00:03.7]} 50. Be5 {[%clk 0:00:30.4]} 50... Bf8 {[%clk 0:00:02.8]} 51. Bc3
{[%clk 0:00:28.8]} 51... Be7 {[%clk 0:00:02.9]} 52. Be1 {[%clk 0:00:27.8]} 52...
Bd6 {[%clk 0:00:02.9]} 53. Bc3 {[%clk 0:00:25.5]} 53... Kc6 {[%clk 0:00:03.2]}
54. Be5 {[%clk 0:00:24.2]} 54... Be7 {[%clk 0:00:03.4]} 55. Bb8 {[%clk
0:00:22.8]} 55... Bf6 {[%clk 0:00:03.6]} 56. Be5 {[%clk 0:00:19.7]} 56... Bd8
{[%clk 0:00:03]} 57. Ke3 {[%clk 0:00:17.2]} 57... Kd7 {[%clk 0:00:03.1]} 58. Ke4
{[%clk 0:00:17]} 58... Kc6 {[%clk 0:00:03.4]} 59. Bb8 {[%clk 0:00:16.7]} 59...
Bf6 {[%clk 0:00:03.2]} 60. Be5 {[%clk 0:00:16.7]} 60... Bh4 {[%clk 0:00:02.3]}
61. g5 {[%clk 0:00:16.5]} 61... Be1 {[%clk 0:00:02.4]} 62. Bb2 {[%clk
0:00:16.2]} 62... Kd6 {[%clk 0:00:02.5]} 63. Be5+ {[%clk 0:00:15.5]} 63... Kd7
{[%clk 0:00:02.6]} 64. Bg7 {[%clk 0:00:14.7]} 64... Kd6 {[%clk 0:00:01.8]} 65.
Bf8+ {[%clk 0:00:14.8]} 65... Kc6 {[%clk 0:00:02]} 66. Ke5 {[%clk 0:00:14.7]}
66... Bd2 {[%clk 0:00:02.4]} 67. Bh6 {[%clk 0:00:12.7]} 1-0